Workbook

Sheet 外国语言文学
A1: 序号 | B1: 考生编号 | C1: 姓名 | D1: 笔试成绩 | E1: 专业面试成绩 | F1: 外语面试成绩 | G1: 复试总成绩百分制 | H1: 复试成绩百分制*40% | I1: 初试成绩 | J1: 初试成绩百分制 | K1: 初试成绩百分制*60% | L1: 总成绩
A2: 1 | B2: 100321050211328 | C2: 周美莲 | D2: 81.0 | E2: 86.6 | F2: 98.0 | G2: =D2*30%+E2*50%+F2*20% -> 87.2 | H2: =G2*40% -> 34.9 | I2: 403 | J2: =I2/5 -> 80.6 | K2: =J2*60% -> 48.4 | L2: =H2+K2 -> 83.2
A3: 2 | B3: 100131244170040 | C3: 吕文婷 | D3: 73.0 | E3: 88.2 | F3: 92.0 | G3: =D3*30%+E3*50%+F3*20% -> 84.4 | H3: =G3*40% -> 33.8 | I3: 411 | J3: =I3/5 -> 82.2 | K3: =J3*60% -> 49.3 | L3: =H3+K3 -> 83.1
A4: 3 | B4: 103191370720659 | C4: 姚璐 | D4: 87.0 | E4: 87.8 | F4: 90.0 | G4: =D4*30%+E4*50%+F4*20% -> 88.0 | H4: =G4*40% -> 35.2 | I4: 395 | J4: =I4/5 -> 79.0 | K4: =J4*60% -> 47.4 | L4: =H4+K4 -> 82.6
A5: 4 | B5: 100321050211115 | C5: 张惠芸 | D5: 78.0 | E5: 85.4 | F5: 93.0 | G5: =D5*30%+E5*50%+F5*20% -> 84.7 | H5: =G5*40% -> 33.9 | I5: 404 | J5: =I5/5 -> 80.8 | K5: =J5*60% -> 48.5 | L5: =H5+K5 -> 82.4
A6: 5 | B6: 105611200007893 | C6: 方俐敏 | D6: 83.5 | E6: 85.4 | F6: 91.0 | G6: =D6*30%+E6*50%+F6*20% -> 86.0 | H6: =G6*40% -> 34.4 | I6: 398 | J6: =I6/5 -> 79.6 | K6: =J6*60% -> 47.8 | L6: =H6+K6 -> 82.1
A7: 6 | B7: 105611200007906 | C7: 周懿 | D7: 85.0 | E7: 83.2 | F7: 90.0 | G7: =D7*30%+E7*50%+F7*20% -> 85.1 | H7: =G7*40% -> 34.0 | I7: 396 | J7: =I7/5 -> 79.2 | K7: =J7*60% -> 47.5 | L7: =H7+K7 -> 81.6
A8: 7 | B8: 105611200007947 | C8: 王梦雨 | D8: 84.5 | E8: 86.2 | F8: 77.0 | G8: =D8*30%+E8*50%+F8*20% -> 83.9 | H8: =G8*40% -> 33.5 | I8: 396 | J8: =I8/5 -> 79.2 | K8: =J8*60% -> 47.5 | L8: =H8+K8 -> 81.1
A9: 8 | B9: 107241137075144 | C9: 安玉萌 | D9: 81.5 | E9: 84 | F9: 75.0 | G9: =D9*30%+E9*50%+F9*20% -> 81.5 | H9: =G9*40% -> 32.6 | I9: 400 | J9: =I9/5 -> 80.0 | K9: =J9*60% -> 48.0 | L9: =H9+K9 -> 80.6

Sheet 翻译
A1: 序号 | B1: 考生编号 | C1: 姓名 | D1: 笔试成绩 | E1: 面试成绩 | F1: 复试总成绩百分制 | G1: 复试成绩百分制*40% | H1: 初试成绩 | I1: 初试成绩百分制 | J1: 初试成绩百分制*60% | K1: 总成绩
A2: 1 | B2: 114141141153816 | C2: 廖梦思 | D2: 86.0 | E2: 84.0 | F2: =D2*40%+E2*60% -> 84.8 | G2: =F2*40% -> 33.9 | H2: 417 | I2: =H2/5 -> 83.4 | J2: =I2*60% -> 50.0 | K2: =G2+J2 -> 84.0
A3: 2 | B3: 114141134063060 | C3: 张钰田 | D3: 90.0 | E3: 80.0 | F3: =D3*40%+E3*60% -> 84.0 | G3: =F3*40% -> 33.6 | H3: 419 | I3: =H3/5 -> 83.8 | J3: =I3*60% -> 50.3 | K3: =G3+J3 -> 83.9
A4: 3 | B4: 114141141153815 | C4: 李霖 | D4: 83.0 | E4: 86.0 | F4: =D4*40%+E4*60% -> 84.8 | G4: =F4*40% -> 33.9 | H4: 413 | I4: =H4/5 -> 82.6 | J4: =I4*60% -> 49.6 | K4: =G4+J4 -> 83.5
A5: 4 | B5: 114141137033350 | C5: 张莹莹 | D5: 82.0 | E5: 78.6 | F5: =D5*40%+E5*60% -> 80.0 | G5: =F5*40% -> 32.0 | H5: 422 | I5: =H5/5 -> 84.4 | J5: =I5*60% -> 50.6 | K5: =G5+J5 -> 82.6
A6: 5 | B6: 114141137013185 | C6: 岳天琳 | D6: 80.0 | E6: 88.4 | F6: =D6*40%+E6*60% -> 85.0 | G6: =F6*40% -> 34.0 | H6: 401 | I6: =H6/5 -> 80.2 | J6: =I6*60% -> 48.1 | K6: =G6+J6 -> 82.1
A7: 6 | B7: 114141151394347 | C7: 申甜欣 | D7: 85.0 | E7: 84.2 | F7: =D7*40%+E7*60% -> 84.5 | G7: =F7*40% -> 33.8 | H7: 402 | I7: =H7/5 -> 80.4 | J7: =I7*60% -> 48.2 | K7: =G7+J7 -> 82.0
A8: 7 | B8: 114141113031911 | C8: 宋春艳 | D8: 90.0 | E8: 84.4 | F8: =D8*40%+E8*60% -> 86.6 | G8: =F8*40% -> 34.7 | H8: 394 | I8: =H8/5 -> 78.8 | J8: =I8*60% -> 47.3 | K8: =G8+J8 -> 81.9
A9: 8 | B9: 114141113061997 | C9: 赵婧宇 | D9: 83.0 | E9: 82.8 | F9: =D9*40%+E9*60% -> 82.9 | G9: =F9*40% -> 33.2 | H9: 405 | I9: =H9/5 -> 81.0 | J9: =I9*60% -> 48.6 | K9: =G9+J9 -> 81.8
A10: 9 | B10: 114141122072742 | C10: 麻英男 | D10: 82.0 | E10: 84.4 | F10: =D10*40%+E10*60% -> 83.4 | G10: =F10*40% -> 33.4 | H10: 402 | I10: =H10/5 -> 80.4 | J10: =I10*60% -> 48.2 | K10: =G10+J10 -> 81.6
A11: 10 | B11: 114141113172203 | C11: 罗金鑫 | D11: 83.0 | E11: 80.2 | F11: =D11*40%+E11*60% -> 81.3 | G11: =F11*40% -> 32.5 | H11: 404 | I11: =H11/5 -> 80.8 | J11: =I11*60% -> 48.5 | K11: =G11+J11 -> 81.0
A12: 11 | B12: 114141113182227 | C12: 王晓甜 | D12: 77.0 | E12: 84 | F12: =D12*40%+E12*60% -> 81.2 | G12: =F12*40% -> 32.5 | H12: 402 | I12: =H12/5 -> 80.4 | J12: =I12*60% -> 48.2 | K12: =G12+J12 -> 80.7
A13: 12 | B13: 114141162114683 | C13: 郑芙红 | D13: 95.0 | E13: 82.6 | F13: =D13*40%+E13*60% -> 87.6 | G13: =F13*40% -> 35.0 | H13: 378 | I13: =H13/5 -> 75.6 | J13: =I13*60% -> 45.4 | K13: =G13+J13 -> 80.4
A14: 13 | B14: 114141137063413 | C14: 黄为楚 | D14: 88.0 | E14: 86.6 | F14: =D14*40%+E14*60% -> 87.2 | G14: =F14*40% -> 34.9 | H14: 379 | I14: =H14/5 -> 75.8 | J14: =I14*60% -> 45.5 | K14: =G14+J14 -> 80.3
A15: 14 | B15: 114141141273847 | C15: 李结 | D15: 85.0 | E15: 81.8 | F15: =D15*40%+E15*60% -> 83.1 | G15: =F15*40% -> 33.2 | H15: 390 | I15: =H15/5 -> 78.0 | J15: =I15*60% -> 46.8 | K15: =G15+J15 -> 80.0
A16: 15 | B16: 114141141143798 | C16: 刘玉红 | D16: 83.0 | E16: 86.0 | F16: =D16*40%+E16*60% -> 84.8 | G16: =F16*40% -> 33.9 | H16: 384 | I16: =H16/5 -> 76.8 | J16: =I16*60% -> 46.1 | K16: =G16+J16 -> 80.0
A17: 16 | B17: 114141113041957 | C17: 李婷 | D17: 85.0 | E17: 85.6 | F17: =D17*40%+E17*60% -> 85.4 | G17: =F17*40% -> 34.1 | H17: 381 | I17: =H17/5 -> 76.2 | J17: =I17*60% -> 45.7 | K17: =G17+J17 -> 79.9
A18: 17 | B18: 114141112151815 | C18: 罗玥 | D18: 86.0 | E18: 84.8 | F18: =D18*40%+E18*60% -> 85.3 | G18: =F18*40% -> 34.1 | H18: 379 | I18: =H18/5 -> 75.8 | J18: =I18*60% -> 45.5 | K18: =G18+J18 -> 79.6
A19: 18 | B19: 114141141463898 | C19: 赵婉晴 | D19: 83.0 | E19: 82.6 | F19: =D19*40%+E19*60% -> 82.8 | G19: =F19*40% -> 33.1 | H19: 379 | I19: =H19/5 -> 75.8 | J19: =I19*60% -> 45.5 | K19: =G19+J19 -> 78.6
A20: 19 | B20: 114141134293095 | C20: 范凡 | D20: 86.0 | E20: 75.4 | F20: =D20*40%+E20*60% -> 79.6 | G20: =F20*40% -> 31.9 | H20: 387 | I20: =H20/5 -> 77.4 | J20: =I20*60% -> 46.4 | K20: =G20+J20 -> 78.3
A21: 20 | B21: 114141137013184 | C21: 蔡广为 | D21: 85.0 | E21: 82.8 | F21: =D21*40%+E21*60% -> 83.7 | G21: =F21*40% -> 33.5 | H21: 373 | I21: =H21/5 -> 74.6 | J21: =I21*60% -> 44.8 | K21: =G21+J21 -> 78.2
A22: 21 | B22: 114141113172204 | C22: 武佳伟 | D22: 91.0 | E22: 82.4 | F22: =D22*40%+E22*60% -> 85.8 | G22: =F22*40% -> 34.3 | H22: 365 | I22: =H22/5 -> 73.0 | J22: =I22*60% -> 43.8 | K22: =G22+J22 -> 78.1
A23: 22 | B23: 114141137133589 | C23: 任安琪 | D23: 87.0 | E23: 78.0 | F23: =D23*40%+E23*60% -> 81.6 | G23: =F23*40% -> 32.6 | H23: 379 | I23: =H23/5 -> 75.8 | J23: =I23*60% -> 45.5 | K23: =G23+J23 -> 78.1
A24: 23 | B24: 114141142113943 | C24: 邱周辉 | D24: 84.0 | E24: 84.0 | F24: =D24*40%+E24*60% -> 84.0 | G24: =F24*40% -> 33.6 | H24: 367 | I24: =H24/5 -> 73.4 | J24: =I24*60% -> 44.0 | K24: =G24+J24 -> 77.6
A25: 24 | B25: 114141111641202 | C25: 刘柳 | D25: 83.0 | E25: 87.0 | F25: =D25*40%+E25*60% -> 85.4 | G25: =F25*40% -> 34.2 | H25: 362 | I25: =H25/5 -> 72.4 | J25: =I25*60% -> 43.4 | K25: =G25+J25 -> 77.6
A26: 25 | B26: 114141135143133 | C26: 刘可欣 | D26: 84.0 | E26: 85.6 | F26: =D26*40%+E26*60% -> 85.0 | G26: =F26*40% -> 34.0 | H26: 362 | I26: =H26/5 -> 72.4 | J26: =I26*60% -> 43.4 | K26: =G26+J26 -> 77.4
A27: 26 | B27: 114141123062766 | C27: 王云琪 | D27: 91.0 | E27: 81.4 | F27: =D27*40%+E27*60% -> 85.2 | G27: =F27*40% -> 34.1 | H27: 361 | I27: =H27/5 -> 72.2 | J27: =I27*60% -> 43.3 | K27: =G27+J27 -> 77.4
A28: 27 | B28: 114141113072018 | C28: 赵艳杰 | D28: 83.0 | E28: 75.8 | F28: =D28*40%+E28*60% -> 78.7 | G28: =F28*40% -> 31.5 | H28: 381 | I28: =H28/5 -> 76.2 | J28: =I28*60% -> 45.7 | K28: =G28+J28 -> 77.2
A29: 28 | B29: 114141137033346 | C29: 蒋玉莲 | D29: 82.0 | E29: 77.6 | F29: =D29*40%+E29*60% -> 79.4 | G29: =F29*40% -> 31.7 | H29: 378 | I29: =H29/5 -> 75.6 | J29: =I29*60% -> 45.4 | K29: =G29+J29 -> 77.1
A30: 29 | B30: 114141141393879 | C30: 范振茹 | D30: 76.0 | E30: 80.8 | F30: =D30*40%+E30*60% -> 78.9 | G30: =F30*40% -> 31.6 | H30: 378 | I30: =H30/5 -> 75.6 | J30: =I30*60% -> 45.4 | K30: =G30+J30 -> 76.9
A31: 30 | B31: 114141113041955 | C31: 郭慧芳 | D31: 76.0 | E31: 80.0 | F31: =D31*40%+E31*60% -> 78.4 | G31: =F31*40% -> 31.4 | H31: 376 | I31: =H31/5 -> 75.2 | J31: =I31*60% -> 45.1 | K31: =G31+J31 -> 76.5
A32: 31 | B32: 114141123262908 | C32: 刘耀泽 | D32: 86.0 | E32: 69.6 | F32: 76.0 | G32: =F32*40% -> 30.4 | H32: 383 | I32: =H32/5 -> 76.6 | J32: =I32*60% -> 46.0 | K32: =G32+J32 -> 76.4
A33: 32 | B33: 114141150224236 | C33: 陈颖 | D33: 81.0 | E33: 77.4 | F33: =D33*40%+E33*60% -> 78.8 | G33: =F33*40% -> 31.5 | H33: 373 | I33: =H33/5 -> 74.6 | J33: =I33*60% -> 44.8 | K33: =G33+J33 -> 76.3
A34: 33 | B34: 114141114112332 | C34: 王沛栋 | D34: 79.0 | E34: 81.8 | F34: =D34*40%+E34*60% -> 80.7 | G34: =F34*40% -> 32.3 | H34: 366 | I34: =H34/5 -> 73.2 | J34: =I34*60% -> 43.9 | K34: =G34+J34 -> 76.2
A35: 34 | B35: 114141111641193 | C35: 胡红 | D35: 77.0 | E35: 80.4 | F35: =D35*40%+E35*60% -> 79.0 | G35: =F35*40% -> 31.6 | H35: 368 | I35: =H35/5 -> 73.6 | J35: =I35*60% -> 44.2 | K35: =G35+J35 -> 75.8
A36: 35 | B36: 114141113142146 | C36: 申艳彩 | D36: 83.0 | E36: 78.8 | F36: =D36*40%+E36*60% -> 80.5 | G36: =F36*40% -> 32.2 | H36: 363 | I36: =H36/5 -> 72.6 | J36: =I36*60% -> 43.6 | K36: =G36+J36 -> 75.8
A37: 36 | B37: 114141113021872 | C37: 高天歌 | D37: 86.0 | E37: 78.2 | F37: =D37*40%+E37*60% -> 81.3 | G37: =F37*40% -> 32.5 | H37: 360 | I37: =H37/5 -> 72.0 | J37: =I37*60% -> 43.2 | K37: =G37+J37 -> 75.7
A38: 37 | B38: 114141111641182 | C38: 谭怡敏 | D38: 81.0 | E38: 78 | F38: =D38*40%+E38*60% -> 79.2 | G38: =F38*40% -> 31.7 | H38: 367 | I38: =H38/5 -> 73.4 | J38: =I38*60% -> 44.0 | K38: =G38+J38 -> 75.7
A39: 38 | B39: 114141141473906 | C39: 孙雨欣 | D39: 75.0 | E39: 73.0 | F39: =D39*40%+E39*60% -> 73.8 | G39: =F39*40% -> 29.5 | H39: 379 | I39: =H39/5 -> 75.8 | J39: =I39*60% -> 45.5 | K39: =G39+J39 -> 75.0
A40: 39 | B40: 114141111641199 | C40: 李汝倍 | D40: 87.0 | E40: 68.0 | F40: =D40*40%+E40*60% -> 75.6 | G40: =F40*40% -> 30.2 | H40: 373 | I40: =H40/5 -> 74.6 | J40: =I40*60% -> 44.8 | K40: =G40+J40 -> 75.0
A41: 40 | B41: 114141150144195 | C41: 杨加乐 | D41: 74.0 | E41: 83.0 | F41: =D41*40%+E41*60% -> 79.4 | G41: =F41*40% -> 31.8 | H41: 358 | I41: =H41/5 -> 71.6 | J41: =I41*60% -> 43.0 | K41: =G41+J41 -> 74.7
A42: 41 | B42: 114141133113028 | C42: 畅欣 | D42: 79.0 | E42: 78.4 | F42: =D42*40%+E42*60% -> 78.6 | G42: =F42*40% -> 31.5 | H42: 359 | I42: =H42/5 -> 71.8 | J42: =I42*60% -> 43.1 | K42: =G42+J42 -> 74.5
A43: 42 | B43: 114141137063414 | C43: 张钰 | D43: 78.0 | E43: 76.8 | F43: =D43*40%+E43*60% -> 77.3 | G43: =F43*40% -> 30.9 | H43: 360 | I43: =H43/5 -> 72.0 | J43: =I43*60% -> 43.2 | K43: =G43+J43 -> 74.1
A44: 43 | B44: 114141137073461 | C44: 郑玉媛 | D44: 61.0 | E44: 77.2 | F44: =D44*40%+E44*60% -> 70.7 | G44: =F44*40% -> 28.3 | H44: 377 | I44: =H44/5 -> 75.4 | J44: =I44*60% -> 45.2 | K44: =G44+J44 -> 73.5

Sheet 汉语国际教育
A1: 序号 | B1: 考生编号 | C1: 姓名 | D1: 笔试成绩 | E1: 专业面试成绩 | F1: 外语面试成绩 | G1: 复试总成绩百分制 | H1: 复试成绩百分制*40% | I1: 初试成绩 | J1: 初试成绩百分制 | K1: 初试成绩百分制*60% | L1: 总成绩
A2: 1 | B2: 114141113051979 | C2: 霍董卓 | D2: 81.0 | E2: 91.4 | F2: 93.6 | G2: =F2*30%+E2*40%+D2*30% -> 88.9 | H2: =G2*40% -> 35.6 | I2: 397 | J2: =I2/5 -> 79.4 | K2: =J2*60% -> 47.6 | L2: =H2+K2 -> 83.2
A3: 2 | B3: 114141137113576 | C3: 卢梦旭 | D3: 77.0 | E3: 85.6 | F3: 86.2 | G3: =F3*30%+E3*40%+D3*30% -> 83.2 | H3: =G3*40% -> 33.3 | I3: 389 | J3: =I3/5 -> 77.8 | K3: =J3*60% -> 46.7 | L3: =H3+K3 -> 80.0
A4: 3 | B4: 114141122072741 | C4: 刘淼 | D4: 92.0 | E4: 83.0 | F4: 81.6 | G4: =F4*30%+E4*40%+D4*30% -> 85.3 | H4: =G4*40% -> 34.1 | I4: 381 | J4: =I4/5 -> 76.2 | K4: =J4*60% -> 45.7 | L4: =H4+K4 -> 79.8
A5: 4 | B5: 114141142414072 | C5: 李岸达 | D5: 93.0 | E5: 88.6 | F5: 88.6 | G5: =F5*30%+E5*40%+D5*30% -> 89.9 | H5: =G5*40% -> 36.0 | I5: 363 | J5: =I5/5 -> 72.6 | K5: =J5*60% -> 43.6 | L5: =H5+K5 -> 79.5
A6: 5 | B6: 114141114062295 | C6: 来星星 | D6: 87.0 | E6: 88.0 | F6: 83.6 | G6: =F6*30%+E6*40%+D6*30% -> 86.4 | H6: =G6*40% -> 34.6 | I6: 374 | J6: =I6/5 -> 74.8 | K6: =J6*60% -> 44.9 | L6: =H6+K6 -> 79.4
A7: 6 | B7: 114141113182225 | C7: 李兆星 | D7: 81.0 | E7: 85.0 | F7: 82.6 | G7: =F7*30%+E7*40%+D7*30% -> 83.1 | H7: =G7*40% -> 33.2 | I7: 382 | J7: =I7/5 -> 76.4 | K7: =J7*60% -> 45.8 | L7: =H7+K7 -> 79.1
A8: 7 | B8: 114141132172974 | C8: 江玉洁 | D8: 79.0 | E8: 89.0 | F8: 84.8 | G8: =F8*30%+E8*40%+D8*30% -> 84.7 | H8: =G8*40% -> 33.9 | I8: 371 | J8: =I8/5 -> 74.2 | K8: =J8*60% -> 44.5 | L8: =H8+K8 -> 78.4
A9: 8 | B9: 114141141113783 | C9: 李草 | D9: 80.0 | E9: 79.4 | F9: 78.8 | G9: =F9*30%+E9*40%+D9*30% -> 79.4 | H9: =G9*40% -> 31.8 | I9: 379 | J9: =I9/5 -> 75.8 | K9: =J9*60% -> 45.5 | L9: =H9+K9 -> 77.2
A10: 9 | B10: 114141137133587 | C10: 代璐瑶 | D10: 92.0 | E10: 78.8 | F10: 68.6 | G10: =F10*30%+E10*40%+D10*30% -> 79.7 | H10: =G10*40% -> 31.9 | I10: 375 | J10: =I10/5 -> 75.0 | K10: =J10*60% -> 45.0 | L10: =H10+K10 -> 76.9
A11: 10 | B11: 114141111641147 | C11: 刘月 | D11: 70.0 | E11: 81.6 | F11: 84.2 | G11: =F11*30%+E11*40%+D11*30% -> 78.9 | H11: =G11*40% -> 31.6 | I11: 372 | J11: =I11/5 -> 74.4 | K11: =J11*60% -> 44.6 | L11: =H11+K11 -> 76.2
A12: 11 | B12: 114141137133586 | C12: 崔晓悦 | D12: 93.0 | E12: 81.0 | F12: 77.2 | G12: =F12*30%+E12*40%+D12*30% -> 83.5 | H12: =G12*40% -> 33.4 | I12: 356 | J12: =I12/5 -> 71.2 | K12: =J12*60% -> 42.7 | L12: =H12+K12 -> 76.1
A13: 12 | B13: 114141136023144 | C13: 陈建芳 | D13: 85.0 | E13: 84.2 | F13: 84.2 | G13: =F13*30%+E13*40%+D13*30% -> 84.4 | H13: =G13*40% -> 33.8 | I13: 351 | J13: =I13/5 -> 70.2 | K13: =J13*60% -> 42.1 | L13: =H13+K13 -> 75.9
A14: 13 | B14: 114141111641133 | C14: 杨喆 | D14: 85.0 | E14: 84.6 | F14: 84.4 | G14: =F14*30%+E14*40%+D14*30% -> 84.7 | H14: =G14*40% -> 33.9 | I14: 350 | J14: =I14/5 -> 70.0 | K14: =J14*60% -> 42.0 | L14: =H14+K14 -> 75.9
A15: 14 | B15: 114141113072014 | C15: 刘万新 | D15: 83.0 | E15: 83.6 | F15: 81.2 | G15: =F15*30%+E15*40%+D15*30% -> 82.7 | H15: =G15*40% -> 33.1 | I15: 356 | J15: =I15/5 -> 71.2 | K15: =J15*60% -> 42.7 | L15: =H15+K15 -> 75.8
A16: 15 | B16: 114141161054577 | C16: 朱秋雨 | D16: 81.0 | E16: 85.6 | F16: 78.8 | G16: =F16*30%+E16*40%+D16*30% -> 82.2 | H16: =G16*40% -> 32.9 | I16: 356 | J16: =I16/5 -> 71.2 | K16: =J16*60% -> 42.7 | L16: =H16+K16 -> 75.6
A17: 16 | B17: 114141141143796 | C17: 段艳文 | D17: 74.0 | E17: 80.4 | F17: 82.0 | G17: =F17*30%+E17*40%+D17*30% -> 79.0 | H17: =G17*40% -> 31.6 | I17: 366 | J17: =I17/5 -> 73.2 | K17: =J17*60% -> 43.9 | L17: =H17+K17 -> 75.5
A18: 17 | B18: 114141141093774 | C18: 刘鑫堂 | D18: 86.0 | E18: 82.4 | F18: 81.2 | G18: =F18*30%+E18*40%+D18*30% -> 83.1 | H18: =G18*40% -> 33.2 | I18: 349 | J18: =I18/5 -> 69.8 | K18: =J18*60% -> 41.9 | L18: =H18+K18 -> 75.1
A19: 18 | B19: 114141141393878 | C19: 赵雅琦 | D19: 69.0 | E19: 82.0 | F19: 76.0 | G19: =F19*30%+E19*40%+D19*30% -> 76.3 | H19: =G19*40% -> 30.5 | I19: 368 | J19: =I19/5 -> 73.6 | K19: =J19*60% -> 44.2 | L19: =H19+K19 -> 74.7
A20: 19 | B20: 114141141213836 | C20: 高赛赢 | D20: 80.0 | E20: 81.4 | F20: 79.4 | G20: =F20*30%+E20*40%+D20*30% -> 80.4 | H20: =G20*40% -> 32.2 | I20: 352 | J20: =I20/5 -> 70.4 | K20: =J20*60% -> 42.2 | L20: =H20+K20 -> 74.4
A21: 20 | B21: 114141111641145 | C21: 王一凡 | D21: 81.0 | E21: 79.8 | F21: 83.4 | G21: =F21*30%+E21*40%+D21*30% -> 81.2 | H21: =G21*40% -> 32.5 | I21: 344 | J21: =I21/5 -> 68.8 | K21: =J21*60% -> 41.3 | L21: =H21+K21 -> 73.8
A22: 21 | B22: 114141111641151 | C22: 肖月 | D22: 82.0 | E22: 73.6 | F22: 75.6 | G22: =F22*30%+E22*40%+D22*30% -> 76.7 | H22: =G22*40% -> 30.7 | I22: 359 | J22: =I22/5 -> 71.8 | K22: =J22*60% -> 43.1 | L22: =H22+K22 -> 73.8
A23: 22 | B23: 114141113172202 | C23: 张耀元 | D23: 60.0 | E23: 81.2 | F23: 77.8 | G23: =F23*30%+E23*40%+D23*30% -> 73.8 | H23: =G23*40% -> 29.5 | I23: 351 | J23: =I23/5 -> 70.2 | K23: =J23*60% -> 42.1 | L23: =H23+K23 -> 71.6
A24: 23 | B24: 114141134133082 | C24: 李宏颖 | D24: 64.0 | E24: 82.0 | F24: 83.6 | G24: =F24*30%+E24*40%+D24*30% -> 77.1 | H24: =G24*40% -> 30.8 | I24: 337 | J24: =I24/5 -> 67.4 | K24: =J24*60% -> 40.4 | L24: =H24+K24 -> 71.3
